fUSD/lending_fUSD_20260227
["ID","MTS","AMOUNT","RATE_DAILY","PERIOD"]
[406832851,1772212241454,-150.0,0.00014728,2]
[406832853,1772212241463,-207.967867,0.00014729,2]
[406832854,1772212241473,-174.627238,0.00014767,7]
[406832855,1772212241483,-509.0,0.0001489,2]
[406832856,1772212241492,-2694.22463618,0.00014926,2]
[406832857,1772212241502,-250.0,0.00015,2]
[406832858,1772212241512,-35977.23609347,0.00015609,2]
[406832859,1772212241521,-15902.67604422,0.00015609,2]
[406832860,1772212241530,-500.0,0.0001582,2]
[406832861,1772212241540,-500.0,0.0001582,2]
[406832862,1772212241550,-500.0,0.0001582,2]
[406832863,1772212241559,-150.0,0.00016,2]
[406832864,1772212241569,-50000.0,0.0001614,2]
[406832865,1772212241579,-5000.00884198,0.000162,5]
[406832866,1772212241588,-2694.22463618,0.00016413,2]
[406832867,1772212241598,-165.5,0.00016712,2]
[406832868,1772212241607,-35977.23609347,0.00016755,2]
[406832869,1772212241617,-15902.67604422,0.00016755,2]
[406832870,1772212241629,-1200.0,0.000169,6]
[406832871,1772212241638,-300.0,0.00017,2]
[406832872,1772212241649,-32158.97035652,0.00017,2]
[406832873,1772212241658,-168.0,0.0001716,2]
[406832874,1772212241668,-168.0,0.00017244,2]
[406832875,1772212241678,-306.73,0.00017285,2]
[406832876,1772212241690,-168.0,0.0001732,2]
[406832877,1772212241699,-168.0,0.00017367,2]
[406832878,1772212241710,-168.0,0.00017628,2]
[406832879,1772212241719,-1500.0,0.000177,6]
[406832880,1772212241730,-150.0,0.00017711,2]
[406832881,1772212241740,-150.0,0.00017711,7]
[406832882,1772212241751,-300.0,0.000178,6]
[406832883,1772212241761,-5000.0,0.00017808,2]
[406832884,1772212241769,-1075.08672241,0.0001789,2]
[406832885,1772212241778,-19420.49031765,0.000179,3]
[406832886,1772212241790,-35977.23609347,0.000179,2]
[406832887,1772212241799,-15902.67604422,0.000179,2]
[406832888,1772212241809,-300.0,0.000179,6]
[406832889,1772212241819,-2694.22463618,0.000179,2]
[406832890,1772212241829,-594.41787884,0.000179,2]
[406832891,1772212241838,-4773.902077,0.00017951,7]
[406832892,1772212241847,-2610.895791,0.00017951,7]
[406832893,1772212241856,-533.4773,0.00017951,7]
[406832894,1772212241866,-501.50601316,0.00017973,2]
[406832895,1772212241875,-500.0,0.00017973,2]
[406832896,1772212241884,-500.0,0.00017973,2]
[406832897,1772212241894,-500.82123681,0.00017973,2]
[406832898,1772212241904,-500.0,0.00017973,2]
[406832899,1772212241913,-500.0,0.00017973,2]
[406832900,1772212241923,-502.2190815,0.00017973,2]
[406832901,1772212241932,-308.59204947,0.00017973,2]
[406832902,1772212241941,-504.17214118,0.00017973,2]
[406832903,1772212241949,-505.53161927,0.00017973,2]
[406832904,1772212241959,-245.61450761,0.0001799,2]
[406832905,1772212241967,-245.61450761,0.0001799,2]
[406832906,1772212241977,-151.0,0.00017997,2]
[406832907,1772212241985,-500.0,0.00017999,2]
[406832908,1772212241995,-500.0,0.00017999,2]
[406832909,1772212242003,-500.0,0.00017999,2]
[406832910,1772212242013,-500.0,0.00017999,2]
[406832911,1772212242022,-500.0,0.00017999,2]
[406832912,1772212242031,-500.0,0.00017999,2]
[406832913,1772212242040,-500.0,0.00017999,2]
[406832914,1772212242049,-500.0,0.00017999,2]
[406832915,1772212242058,-500.0,0.00017999,2]
[406832916,1772212242067,-500.0,0.00017999,2]
[406832917,1772212242076,-611.16,0.00017999,2]
[406832918,1772212242085,-500.0,0.00017999,2]
[406832919,1772212242094,-500.0,0.00017999,2]
[406832920,1772212242103,-494.09872212,0.00017999,2]
[406832921,1772212242112,-300.0,0.00017999,2]
[406832922,1772212242121,-300.0,0.00017999,2]
[406832923,1772212242130,-1838728.84336096,0.00018,2]
[406832924,1772212242273,-277.85959254,0.00013698,2]
[406832925,1772212242283,-660.43501741,0.00018,2]
[406832926,1772212242294,-4261185.54440828,0.00018,2]
[406832927,1772212242319,-7089.44173183,0.00018,2]
[406832928,1772212242330,-68888.0,0.00018,2]
[406832933,1772212243428,-500.0,0.0001,2]
[406832934,1772212243438,-7.0870678,0.0001,2]
[406832935,1772212243586,-424.394407,0.0001,2]
[406832951,1772212698458,3188.63,6.255e-05,2]
[406832952,1772212698677,3188.63,6.524e-05,2]
[406832953,1772212698892,3188.63,6.794e-05,2]
[406832954,1772212701906,434.12,7.063e-05,2]
[406832955,1772212701929,2754.51,7.063e-05,2]
[406832956,1772212706112,3188.63,7.333e-05,2]
[406832958,1772212943053,-150.0,0.00013699,30]
[406832959,1772212962081,-150.0,0.00013699,30]
[406832960,1772212967384,-150.0,0.00013699,30]
[406832961,1772212975708,-50.0,0.00013699,30]
[406832962,1772212975733,-100.0,0.00013699,30]
[406832963,1772212977308,-150.0,0.00013699,30]
[406832964,1772212978695,-150.0,0.00013699,30]
[406832965,1772212979045,158.03,6.697e-05,2]
[406832966,1772212980720,-100.0,0.00013699,30]
[406832967,1772212980745,-50.0,0.00013699,30]
[406832968,1772212983162,-150.0,0.00013699,30]
[406832971,1772213113331,-150.0,0.00013699,30]
[406832972,1772213114704,-150.0,0.00013699,30]
[406832973,1772213122171,-227.13,7.6e-05,2]
[406832974,1772213122197,-900.0,7.6e-05,2]
[406832975,1772213122223,-204.77558147,7.6e-05,2]
[406832976,1772213122250,-2336.19883706,7.601e-05,2]
[406832977,1772213122440,-2663.80116294,7.601e-05,2]
[406832978,1772213122468,-300.0,7.601e-05,2]
[406832979,1772213122495,-1200.0,7.601e-05,2]
[406832980,1772213122522,-300.0,7.601e-05,2]
[406832981,1772213122623,-3188.63,7.602e-05,2]
[406832982,1772213122649,-250.0,7.602e-05,2]
[406832983,1772213122677,-214.0,7.602e-05,2]
[406832984,1772213122703,-300.0,7.654e-05,2]
[406832985,1772213122837,-5000.0,7.655e-05,2]
[406832986,1772213122983,-5000.0,7.655e-05,2]
[406832987,1772213123174,-5000.0,7.655e-05,2]
[406832988,1772213124984,-150.0,7.87e-05,2]
[406832989,1772213125017,-250.0,7.871e-05,2]
[406832990,1772213125049,-150.99,7.871e-05,2]
[406832991,1772213125174,-0.02,7.871e-05,2]
[406832992,1772213125257,-1500.75492841,7.871e-05,2]
[406832993,1772213125444,-1500.79492841,7.871e-05,2]
[406832994,1772213125478,-3001.58985682,7.871e-05,2]
[406832995,1772213125515,-3996.83028636,7.871e-05,2]
[406832996,1772213125528,-3188.63,7.871e-05,2]
[406832997,1772213161479,300.0,8.14e-05,2]
[406832998,1772213197678,-3188.63,8.141e-05,2]
[406832999,1772213197700,-9999.99,8.141e-05,2]
[406833000,1772213197725,-999.99,8.141e-05,2]
[406833001,1772213197748,-299.99,8.141e-05,2]
[406833002,1772213197776,-150.99,8.141e-05,2]
[406833003,1772213197799,-9999.99,8.141e-05,2]
[406833004,1772213197822,-9999.99,8.141e-05,2]
[406833005,1772213197848,-348.44,8.141e-05,2]
[406833006,1772213197871,-250.0,8.16e-05,2]
[406833007,1772213197893,-5000.0,8.18e-05,2]
[406833008,1772213197915,-153.706925,8.219e-05,2]
[406833009,1772213197936,-310.785147,8.224e-05,2]
[406833010,1772213197957,-250.0,8.238e-05,2]
[406833011,1772213197981,-588.19889523,8.289e-05,2]
[406833012,1772213198002,-5000.0,8.36e-05,2]
[406833013,1772213198030,-195.0,8.36e-05,2]
[406833014,1772213198055,-195.0,8.36e-05,2]
[406833015,1772213198077,-195.0,8.36e-05,2]
[406833016,1772213198100,-193.0,8.36e-05,2]
[406833017,1772213198122,-193.0,8.36e-05,2]
[406833018,1772213198145,-1680.0,8.361e-05,2]
[406833019,1772213198166,-936.35900762,8.409e-05,2]
[406833020,1772213198189,-3188.63,8.41e-05,2]
[406833021,1772213198211,-7950.13,8.445e-05,2]
[406833022,1772213198236,-1500.0,8.534e-05,2]
[406833023,1772213198258,-255.0,8.657e-05,2]
[406833024,1772213198284,-3188.63,8.679e-05,2]
[406833025,1772213198306,-3188.63,8.949e-05,2]
[406833026,1772213198328,-420.0,8.954e-05,2]
[406833027,1772213198353,-193.0,8.955e-05,2]
[406833028,1772213198376,-5000.0,8.955e-05,2]
[406833029,1772213198399,-250.0,8.955e-05,2]
[406833030,1772213198422,-2351.0,9.197e-05,2]
[406833031,1772213198445,-3188.63,9.218e-05,2]
[406833032,1772213198467,-6017.05845073,9.398e-05,2]
[406833033,1772213198491,-3188.63,9.488e-05,2]
[406833034,1772213198514,-433.0,9.523e-05,2]
[406833035,1772213198537,-3188.63,9.757e-05,2]
[406833036,1772213198560,-587.0,9.849e-05,2]
[406833037,1772213198583,-151.0,9.897e-05,2]
[406833038,1772213198609,-500.0,9.899e-05,2]
[406833039,1772213198634,-500.0,9.899e-05,2]
[406833040,1772213198659,-500.0,9.899e-05,2]
[406833041,1772213198684,-500.0,9.899e-05,2]
[406833042,1772213198709,-500.0,9.899e-05,2]
[406833043,1772213198736,-500.0,9.899e-05,2]
[406833044,1772213198761,-365.19566245,9.899e-05,2]
[406833045,1772213198786,-500.0,9.899e-05,2]
[406833046,1772213198811,-500.0,9.899e-05,2]
[406833047,1772213198835,-500.0,9.899e-05,2]
[406833048,1772213198860,-500.0,9.899e-05,2]
[406833049,1772213198886,-500.0,9.899e-05,2]
[406833050,1772213198909,-239.97949763,9.899e-05,2]
[406833051,1772213198935,-500.0,9.899e-05,2]
[406833052,1772213198961,-500.0,9.899e-05,2]
[406833053,1772213198987,-500.0,9.899e-05,2]
[406833054,1772213199015,-500.0,9.899e-05,2]
[406833055,1772213199044,-500.0,9.899e-05,2]
[406833056,1772213199071,-500.0,9.899e-05,2]
[406833057,1772213199096,-500.0,9.899e-05,2]
[406833058,1772213199121,-449.59273535,9.899e-05,2]
[406833059,1772213199146,-500.0,9.899e-05,2]
[406833060,1772213199172,-500.0,9.899e-05,2]
[406833061,1772213199197,-500.0,9.899e-05,2]
[406833062,1772213199234,-500.0,9.899e-05,2]
[406833063,1772213199262,-500.0,9.899e-05,2]
[406833064,1772213199289,-500.0,9.899e-05,2]
[406833065,1772213199314,-500.0,9.899e-05,2]
[406833066,1772213199340,-500.0,9.899e-05,2]
[406833067,1772213199366,-500.0,9.899e-05,2]
[406833068,1772213199391,-500.0,9.899e-05,2]
[406833069,1772213199415,-500.0,9.899e-05,2]
[406833070,1772213199442,-500.0,9.899e-05,2]
[406833071,1772213199466,-262.44978733,9.899e-05,2]
[406833072,1772213199492,-500.0,9.899e-05,2]
[406833073,1772213199518,-500.0,9.899e-05,2]
[406833074,1772213199544,-500.0,9.899e-05,2]
[406833075,1772213199569,-500.0,9.899e-05,2]
[406833076,1772213199595,-500.0,9.899e-05,2]
[406833077,1772213199620,-500.0,9.899e-05,2]
[406833078,1772213199649,-500.0,9.899e-05,2]
[406833079,1772213199675,-500.0,9.899e-05,2]
[406833080,1772213199701,-500.0,9.899e-05,2]
[406833081,1772213199729,-500.0,9.899e-05,2]
[406833082,1772213199755,-500.0,9.899e-05,2]
[406833083,1772213199972,-500.0,9.899e-05,2]
[406833084,1772213199999,-500.0,9.899e-05,2]
[406833085,1772213200033,-500.0,9.899e-05,2]
[406833086,1772213200058,-500.0,9.9e-05,2]
[406833087,1772213200085,-231815.75389166,9.9e-05,2]
[406833089,1772213284556,9700.01,7.771e-05,2]
[406833090,1772213284581,10000.01,7.771e-05,2]
[406833091,1772213284606,10000.01,7.771e-05,2]
[406833092,1772213284629,10000.01,7.771e-05,2]
[406833093,1772213284652,10000.01,7.771e-05,2]
[406833094,1772213284676,10000.01,7.771e-05,2]
[406833096,1772213404235,150.0,7.771e-05,7]
[406833121,1772213431416,-300.0,7.77e-05,2]
[406833122,1772213431426,-1200.0,7.77e-05,2]
[406833123,1772213431437,-150.0,7.77e-05,2]
[406833124,1772213431447,-300.0,7.77e-05,2]
[406833125,1772213431456,-215.0,7.77e-05,2]
[406833126,1772213431466,-500.0,7.77e-05,2]
[406833127,1772213431475,-500.0,7.77e-05,2]
[406833128,1772213431484,-500.0,7.77e-05,2]
[406833129,1772213431494,-500.0,7.77e-05,2]
[406833130,1772213431503,-500.0,7.77e-05,2]
[406833131,1772213431513,-500.0,7.77e-05,2]
[406833132,1772213431522,-231.47883978,7.77e-05,2]
[406833133,1772213431535,-360.5740761,7.771e-05,2]
[406833134,1772213431545,-150.0,7.771e-05,2]
[406833135,1772213431555,-32578.30627761,7.771e-05,2]
[406833136,1772213431568,-107451.74285829,7.771e-05,2]
[406833137,1772213431585,-904.11328782,7.771e-05,2]
[406833139,1772213431596,-575.88366495,7.771e-05,2]
[406833141,1772213431608,-2107.37240693,7.771e-05,2]
[406833144,1772213431620,-959.06645445,7.771e-05,2]
[406833146,1772213431646,-2491.59768231,7.771e-05,2]
[406833148,1772213431663,-2107.28432845,7.771e-05,2]
[406833150,1772213431674,-482.5225775,7.771e-05,2]
[406833153,1772213431686,-4727.81803649,7.771e-05,2]
[406833155,1772213431698,-675.0,7.771e-05,2]
[406833158,1772213431717,-2000.0,7.771e-05,2]
[406833160,1772213431729,-951.09995283,7.771e-05,2]
[406833162,1772213431740,-817.6419006,7.771e-05,2]
[406833164,1772213431751,-1075.43,7.771e-05,2]
[406833188,1772213437530,-13064.02354624,7.771e-05,2]
[406833189,1772213437542,-270.0001,7.771e-05,2]
[406833190,1772213437553,-1767061.03692553,7.771e-05,2]
[406833191,1772213437562,-420.0,8.547e-05,2]
[406833192,1772213437572,-1222.0,8.547e-05,2]
[406833193,1772213437581,-252.0,8.547e-05,2]
[406833194,1772213437591,-251.0,9.402e-05,2]
[406833195,1772213437600,-1852.42,9.484e-05,2]
[406833196,1772213437610,-10048.75,9.557e-05,2]
[406833197,1772213437619,-210.2,9.609e-05,2]
[406833198,1772213437628,-1000.0,9.612e-05,2]
[406833199,1772213437637,-31067.91,9.708e-05,2]
[406833200,1772213437647,-500.0,9.799e-05,2]
[406833201,1772213437656,-200.0,9.8e-05,3]
[406833202,1772213437666,-2500.0,9.8e-05,2]
[406833203,1772213437678,-1586.97413421,9.899e-05,2]
[406833204,1772213437687,-8961.50435011,9.899e-05,2]
[406833205,1772213437696,-425.09831696,9.899e-05,2]
[406833206,1772213437705,-917.91915087,9.899e-05,2]
[406833207,1772213437715,-180.0,9.9e-05,2]
[406833208,1772213437725,-400.0,9.9e-05,3]
[406833209,1772213437733,-1000.0,9.9e-05,2]
[406833210,1772213437743,-1000.0,9.9e-05,2]
[406833211,1772213437752,-1000.0,9.9e-05,2]
[406833212,1772213437761,-250.0,9.95e-05,2]
[406833213,1772213437771,-1198.0,0.0001,2]
[406833214,1772213437780,-151.0,0.0001,2]
[406833215,1772213437789,-151.0,0.0001,2]
[406833216,1772213437798,-151.0,0.0001,2]
[406833217,1772213437807,-151.0,0.0001,2]
[406833218,1772213437817,-151.0,0.0001,2]
[406833219,1772213437826,-151.0,0.0001,2]
[406833220,1772213437835,-151.0,0.0001,2]
[406833221,1772213437843,-151.0,0.0001,2]
[406833222,1772213437852,-500.0,0.0001,2]
[406833223,1772213437861,-151.0,0.0001,2]
[406833224,1772213437870,-500.0,0.0001,2]
[406833225,1772213437880,-151.0,0.0001,2]
[406833226,1772213437890,-151.0,0.0001,2]
[406833227,1772213437900,-151.0,0.0001,2]
[406833228,1772213437910,-500.0,0.0001,2]
[406833229,1772213437920,-151.0,0.0001,2]
[406833230,1772213437929,-500.0,0.0001,2]
[406833231,1772213437939,-151.0,0.0001,2]
[406833232,1772213437948,-151.0,0.0001,2]
[406833233,1772213437958,-500.0,0.0001,2]
[406833234,1772213437967,-151.0,0.0001,2]
[406833236,1772213437977,-151.0,0.0001,2]
[406833238,1772213437989,-500.0,0.0001,2]
[406833241,1772213437998,-151.0,0.0001,2]
[406833243,1772213438007,-151.0,0.0001,2]
[406833245,1772213438015,-500.0,0.0001,2]
[406833247,1772213438025,-151.0,0.0001,2]
[406833249,1772213438034,-500.0,0.0001,2]
[406833251,1772213438044,-151.0,0.0001,2]
[406833253,1772213438053,-151.0,0.0001,2]
[406833255,1772213438064,-500.0,0.0001,2]
[406833257,1772213438073,-500.0,0.0001,2]
[406833259,1772213438083,-151.0,0.0001,2]
[406833260,1772213438093,-151.0,0.0001,2]
[406833261,1772213438104,-500.0,0.0001,2]
[406833262,1772213438114,-500.0,0.0001,2]
[406833263,1772213438123,-151.0,0.0001,2]
[406833264,1772213438133,-500.0,0.0001,2]
[406833265,1772213438143,-500.0,0.0001,2]
[406833266,1772213438152,-151.0,0.0001,2]
[406833267,1772213438162,-500.0,0.0001,2]
[406833268,1772213438172,-500.0,0.0001,2]
[406833269,1772213438182,-151.0,0.0001,2]
[406833270,1772213438194,-500.0,0.0001,2]
[406833271,1772213438204,-500.0,0.0001,2]
[406833272,1772213438214,-151.0,0.0001,2]
[406833273,1772213438223,-500.0,0.0001,2]
[406833274,1772213438232,-500.0,0.0001,2]
[406833275,1772213438242,-151.0,0.0001,2]
[406833276,1772213438252,-500.0,0.0001,2]
[406833277,1772213438261,-151.0,0.0001,2]
[406833278,1772213438271,-151.0,0.0001,2]
[406833279,1772213438282,-500.0,0.0001,2]
[406833280,1772213438292,-151.0,0.0001,2]
[406833281,1772213438302,-500.0,0.0001,2]
[406833282,1772213438311,-151.0,0.0001,2]
[406833283,1772213438320,-500.0,0.0001,2]
[406833284,1772213438330,-500.0,0.0001,2]
[406833285,1772213438339,-500.0,0.0001,2]
[406833286,1772213438348,-600.0,0.0001,3]
[406833287,1772213438358,-241.50191727,0.0001,2]
[406833288,1772213438367,-396.2785859,0.0001,2]
[406833289,1772213438377,-250.0,0.00010014,2]
[406833290,1772213438387,-3188.63,0.00010026,2]
[406833291,1772213438396,-4000.0,0.00010027,2]
[406833292,1772213438406,-500.0,0.00010153,2]
[406833293,1772213438417,-250.0,0.00010268,2]
[406833294,1772213438426,-1198.0,0.00010274,2]
[406833295,1772213438436,-4000.0,0.00010278,2]
[406833296,1772213438445,-3188.63,0.00010296,2]
[406833297,1772213438454,-500.0,0.000103,2]
[406833298,1772213438464,-500.0,0.000103,2]
[406833299,1772213438473,-500.0,0.000103,2]
[406833300,1772213438482,-500.0,0.000103,2]
[406833301,1772213438491,-500.0,0.000103,2]
[406833302,1772213438502,-500.0,0.000103,2]
[406833303,1772213438511,-500.0,0.000103,2]
[406833304,1772213438522,-500.0,0.000103,2]
[406833305,1772213438531,-500.0,0.000103,2]
[406833306,1772213438541,-500.0,0.000103,2]
[406833307,1772213438550,-500.0,0.000103,2]
[406833308,1772213438559,-500.0,0.000103,2]
[406833309,1772213438568,-500.0,0.000103,2]
[406833310,1772213438578,-500.0,0.000103,2]
[406833311,1772213438596,-500.0,0.000103,2]
[406833312,1772213438609,-500.0,0.000103,2]
[406833313,1772213438620,-500.0,0.000103,2]
[406833314,1772213438630,-727.27152182,0.000103,2]
[406833315,1772213438640,-500.0,0.000103,2]
[406833316,1772213438649,-500.0,0.000103,2]
[406833317,1772213438659,-500.0,0.000103,2]
[406833318,1772213438669,-500.0,0.000103,2]
[406833319,1772213438678,-500.0,0.000103,2]
[406833320,1772213438687,-500.0,0.000103,2]
[406833321,1772213438697,-500.0,0.000103,2]
[406833322,1772213438707,-500.0,0.000103,2]
[406833323,1772213438718,-500.0,0.000103,2]
[406833324,1772213438728,-500.0,0.000103,2]
[406833325,1772213438738,-800.0,0.000103,2]
[406833326,1772213438747,-160.04319,0.00010448,2]
[406833327,1772213438756,-368.695818,0.0001045,2]
[406833328,1772213438766,-294.0,0.00010451,2]
[406833329,1772213438776,-743.31679127,0.00010452,2]
[406833330,1772213438785,-23735.81,0.00010475,2]
[406833331,1772213438795,-4000.0,0.00010529,2]
[406833332,1772213438804,-1198.0,0.00010548,2]
[406833333,1772213438814,-3188.63,0.00010565,2]
[406833334,1772213438824,-4000.0,0.00010779,2]
[406833335,1772213438834,-1000.0,0.00010814,2]
[406833336,1772213438845,-1198.0,0.00010822,2]
[406833337,1772213438855,-440.69410624,0.00010829,2]
[406833338,1772213438865,-500.0,0.00010829,2]
[406833339,1772213438875,-500.0,0.00010829,2]
[406833340,1772213438884,-500.0,0.00010829,2]
[406833341,1772213438894,-3188.63,0.00010834,2]
[406833342,1772213438904,-250.0,0.0001089,2]
[406833343,1772213439127,-1010.33423862,0.000109,2]
[406833344,1772213439137,-1252.02192859,0.00010959,2]
[406833345,1772213439147,-262.91,0.00010992,2]
[406833346,1772213439157,-1727.455,0.00011,2]
[406833347,1772213439168,-179.991,0.00011,2]
[406833348,1772213439177,-4000.0,0.0001103,2]
[406833349,1772213439187,-390.28814007,0.00011077,2]
[406833350,1772213439197,-1198.0,0.00011096,2]
[406833351,1772213439206,-7951.33802211,0.00011099,2]
[406833352,1772213439216,-17988.61804678,0.00011099,2]
[406833353,1772213439225,-17988.61804673,0.00011099,2]
[406833354,1772213439236,-3188.63,0.00011104,2]
[406833356,1772213439246,-91999.03614576,0.00011106,2]
[406833357,1772213439255,-1198.0,0.0001137,2]
[406833359,1772213439264,-14432.92,0.00011373,2]
[406833360,1772213439273,-2183.91,0.00011373,2]
[406833361,1772213439283,-150.0,0.00011373,2]
[406833362,1772213439297,-3188.63,0.00011373,2]
[406833363,1772213439306,-17988.61804673,0.00011374,2]
[406833364,1772213439316,-1088.21122201,0.00011377,2]
[406833365,1772213439326,-1000.0,0.00011377,2]
[406833366,1772213439336,-1000.0,0.00011377,2]
[406833367,1772213439346,-2778.74,0.00011507,2]
[406833368,1772213439356,-1198.0,0.00011644,2]
[406833369,1772213439366,-1198.0,0.00011918,2]
[406833370,1772213439375,-500.0,0.00011924,2]
[406833371,1772213439386,-1500.0,0.00011924,2]
[406833372,1772213439396,-1000.0,0.00012015,2]
[406833373,1772213439407,-52754.8,0.00012055,2]
[406833374,1772213439421,-1198.0,0.00012192,2]
[406833375,1772213439431,-17988.61804673,0.00012306,2]
[406833376,1772213439441,-199.790451,0.00012336,2]
[406833377,1772213439450,-1198.0,0.00012466,2]
[406833378,1772213439459,-2000.0,0.00012472,2]
[406833379,1772213439469,-1198.0,0.0001274,2]
[406833380,1772213439479,-500.0,0.0001289,2]
[406833381,1772213439488,-500.0,0.0001289,2]
[406833382,1772213439498,-500.0,0.0001289,2]
[406833383,1772213439508,-500.0,0.0001289,2]
[406833384,1772213439518,-500.0,0.0001289,2]
[406833385,1772213439528,-500.0,0.0001289,2]
[406833386,1772213439537,-500.0,0.0001289,2]
[406833387,1772213439547,-500.0,0.0001289,2]
[406833388,1772213439557,-500.0,0.0001289,2]
[406833389,1772213439567,-500.0,0.0001289,2]
[406833390,1772213439576,-500.0,0.0001289,2]
[406833391,1772213439586,-500.0,0.0001289,2]
[406833392,1772213439596,-500.0,0.0001289,2]
[406833393,1772213439606,-500.0,0.0001289,2]
[406833394,1772213439615,-500.0,0.0001289,2]
[406833395,1772213439625,-500.0,0.0001289,2]
[406833396,1772213439635,-500.0,0.0001289,2]
[406833397,1772213439644,-500.0,0.0001289,2]
[406833398,1772213439654,-500.0,0.0001289,2]
[406833399,1772213439664,-611.11529278,0.0001289,2]
[406833400,1772213439673,-869.88788903,0.0001289,2]
[406833402,1772213439683,-500.0,0.0001289,2]
[406833404,1772213439696,-500.0,0.0001289,2]
[406833406,1772213439706,-500.0,0.0001289,2]
[406833407,1772213439715,-500.0,0.0001289,2]
[406833408,1772213439724,-500.0,0.0001289,2]
[406833409,1772213439733,-500.0,0.0001289,2]
[406833410,1772213439743,-500.0,0.0001289,2]
[406833411,1772213439752,-500.0,0.0001289,2]
[406833412,1772213439762,-500.0,0.0001289,2]
[406833413,1772213439771,-500.0,0.0001289,2]
[406833414,1772213439781,-500.0,0.0001289,2]
[406833415,1772213439790,-500.0,0.0001289,2]
[406833416,1772213439801,-500.0,0.0001289,2]
[406833417,1772213439811,-500.0,0.0001289,2]
[406833418,1772213439820,-500.0,0.0001289,2]
[406833419,1772213439830,-500.0,0.0001289,2]
[406833420,1772213439839,-500.0,0.0001289,2]
[406833421,1772213439849,-500.0,0.0001289,2]
[406833422,1772213439858,-1198.06,0.00013014,2]
[406833423,1772213439867,-320.22794059,0.0001302,2]
[406833424,1772213439877,-1432.170623,0.00013106,2]
[406833425,1772213439887,-1000.0,0.00013217,2]
[406833426,1772213439897,-17988.61804673,0.00013238,2]
[406833427,1772213439907,-3240.0,0.00013425,2]
[406833428,1772213439918,-500.0,0.00013698,2]
[406833429,1772213439927,-500.0,0.00013698,2]
[406833430,1772213439936,-500.0,0.00013698,2]
[406833431,1772213439946,-500.0,0.00013698,2]
[406833432,1772213439955,-500.0,0.00013698,2]
[406833433,1772213439964,-500.0,0.00013698,2]
[406833434,1772213439973,-500.0,0.00013698,2]
[406833435,1772213439984,-500.0,0.00013698,2]
[406833436,1772213439994,-500.0,0.00013698,2]
[406833437,1772213440004,-500.0,0.00013698,2]
[406833438,1772213440015,-611.16,0.00013698,2]
[406833439,1772213440024,-500.0,0.00013698,2]
[406833440,1772213440034,-500.0,0.00013698,2]
[406833441,1772213440043,-500.0,0.00013698,2]
[406833442,1772213440052,-500.0,0.00013698,2]
[406833443,1772213440064,-500.0,0.00013698,2]
[406833444,1772213440073,-500.0,0.00013698,2]
[406833445,1772213440082,-500.0,0.00013698,2]
[406833446,1772213440095,-500.0,0.00013698,2]
[406833447,1772213440105,-500.0,0.00013698,2]
[406833448,1772213440115,-500.0,0.00013698,2]
[406833449,1772213440125,-500.0,0.00013698,2]
[406833450,1772213440135,-500.0,0.00013698,2]
[406833451,1772213440144,-500.0,0.00013698,2]
[406833452,1772213440154,-479.11436236,0.00013698,2]
[406833453,1772213440165,-500.0,0.00013698,2]
[406833454,1772213440174,-500.0,0.00013698,2]
[406833455,1772213440183,-500.0,0.00013698,2]